[Event "21st Hogeschool Zeeland 2017"]
[Site "Vlissingen"]
[Date "2017.08.09"]
[Round "6"]
[White "Lai, Hing Ting"]
[Black "Amesz, Jaap"]
[Result "1-0"]
[ECO "A08"]
[WhiteElo "2388"]
[BlackElo "2201"]
[Annotator "ChessBase"]
[PlyCount "33"]
[EventDate "2017.??.??"]
[SourceTitle "playchess.com"]
[Source "ChessBase"]
[SourceQuality "1"]
[TimeControl "40/5400+30:1800+30"]

1. Nf3 {[%emt 0:00:00]} d5 {[%emt 0:00:43]} 2. g3 {[%emt 0:00:00]} c5 {[%emt 0:00:29]} 3. Bg2 {[%emt 0:00:00]} Nc6 {[%emt 0:00:03]} 4. d4 {[%emt 0:00:00]} Nf6 {[%emt 0:00:47]} 5. O-O {[%emt 0:00:10]} e6 {[%emt 0:03:08]} 6. c4 {[%emt 0:00:37]} dxc4 {[%emt 0:01:00]} 7. dxc5 {[%emt 0:01:38]} Qxd1 {[%emt 0:03:42]} 8. Rxd1 {[%emt 0:00:03]} Bxc5 {[%emt 0:00:13]} 9. Nbd2 {[%emt 0:00:12]} c3 {[%emt 0:08:59]} 10. bxc3 {[%emt 0:00:10]} Ke7 {[%emt 0:02:02]} 11. Ne1 {[%emt 0:05:18]} Rd8 {[%emt 0:06:33]} 12. Nd3 {[%emt 0:00:23]} Bd6 {[%emt 0:01:00]} 13. Nc4 {[%emt 0:01:00]} Bc7 {[%emt 0:04:39]} 14. Ba3+ {[%emt 0:01:14]} Ke8 {[%emt 0:00:02]} 15. Nc5 {[%emt 0:01:16]} Rxd1+ {[%emt 0:10:01]} 16. Rxd1 {[%emt 0:00:08]} Nd8 {[%emt 0:00:13]} 17. Na6 {[%emt 0:02:57]} 1-0